[Event "Early-Titled-Tuesday-Blitz-May-07-2024"]
[Site "Chess.com"]
[Date "2024.05.07"]
[Round "6"]
[White "Rud_Makarian"]
[Black "Rakhmanov_Aleksandr"]
[Result "1-0"]
[WhiteElo "3054"]
[BlackElo "2855"]
[TimeControl "180+1"]
[EndTime "9:13:23 PDT"]
[Termination "Rud_Makarian won by resignation"]

1. d4 {[%clk 0:02:58.6]} 1... Nf6 {[%clk 0:02:59.6]} 2. c4 {[%clk 0:02:58.9]}
2... d6 {[%clk 0:02:59.4]} 3. Nf3 {[%clk 0:02:59.1]} 3... g6 {[%clk 0:02:58.6]}
4. Nc3 {[%clk 0:02:57.5]} 4... Bf5 {[%clk 0:02:58.7]} 5. g3 {[%clk 0:02:53.4]}
5... Bg7 {[%clk 0:02:55.9]} 6. Bg2 {[%clk 0:02:52.9]} 6... c6 {[%clk 0:02:56.1]}
7. O-O {[%clk 0:02:51.5]} 7... O-O {[%clk 0:02:55.4]} 8. Ne1 {[%clk 0:02:51.8]}
8... Be6 {[%clk 0:02:49.2]} 9. b3 {[%clk 0:02:49.6]} 9... d5 {[%clk 0:02:47.6]}
10. cxd5 {[%clk 0:02:47.2]} 10... cxd5 {[%clk 0:02:44.1]} 11. Bb2 {[%clk
0:02:47.4]} 11... Nc6 {[%clk 0:02:43.5]} 12. e3 {[%clk 0:02:47.5]} 12... Rc8
{[%clk 0:02:36.8]} 13. Nd3 {[%clk 0:02:46.4]} 13... Bf5 {[%clk 0:02:30.6]} 14.
Qe2 {[%clk 0:02:44.2]} 14... Bxd3 {[%clk 0:02:25.8]} 15. Qxd3 {[%clk 0:02:44.4]}
15... e6 {[%clk 0:02:25.8]} 16. Rfc1 {[%clk 0:02:36.6]} 16... Qd7 {[%clk
0:02:19.8]} 17. Qd2 {[%clk 0:02:24.8]} 17... Qe7 {[%clk 0:01:56.1]} 18. Na4
{[%clk 0:02:20.4]} 18... Rc7 {[%clk 0:01:53.9]} 19. Nc5 {[%clk 0:02:16.8]} 19...
Rfc8 {[%clk 0:01:53.2]} 20. Nd3 {[%clk 0:02:13.7]} 20... Ne4 {[%clk 0:01:39.7]}
21. Qe2 {[%clk 0:02:10.2]} 21... Nb4 {[%clk 0:01:24.6]} 22. Rxc7 {[%clk
0:02:05.6]} 22... Rxc7 {[%clk 0:01:22.6]} 23. Ba3 {[%clk 0:01:58.2]} 23... a5
{[%clk 0:01:10.4]} 24. Bxb4 {[%clk 0:01:35.9]} 24... axb4 {[%clk 0:01:09.3]} 25.
Bxe4 {[%clk 0:01:28.8]} 25... dxe4 {[%clk 0:01:10.2]} 26. Nf4 {[%clk 0:01:27.7]}
26... Bh6 {[%clk 0:00:33.7]} 27. Rd1 {[%clk 0:01:10.9]} 27... Qd6 {[%clk
0:00:16.6]} 28. Nh3 {[%clk 0:00:59.3]} 28... Qd5 {[%clk 0:00:14]} 29. Kg2 {[%clk
0:00:57.8]} 29... Rc3 {[%clk 0:00:13.2]} 30. Rd2 {[%clk 0:00:56.6]} 30... Kg7
{[%clk 0:00:12.4]} 31. Ng1 {[%clk 0:00:54.7]} 31... Qc6 {[%clk 0:00:11.9]} 32.
h4 {[%clk 0:00:52.5]} 32... Kg8 {[%clk 0:00:11.7]} 33. Nh3 {[%clk 0:00:51.4]}
33... Qd5 {[%clk 0:00:07.6]} 34. Qg4 {[%clk 0:00:41.4]} 34... Qf5 {[%clk
0:00:03.7]} 35. Qxf5 {[%clk 0:00:30]} 35... gxf5 {[%clk 0:00:04.6]} 36. Ng1
{[%clk 0:00:27.4]} 36... Kf8 {[%clk 0:00:03.1]} 37. Ne2 {[%clk 0:00:27.8]} 37...
Rc7 {[%clk 0:00:02.6]} 38. Kh3 {[%clk 0:00:24.5]} 38... Ke7 {[%clk 0:00:01.7]}
39. g4 {[%clk 0:00:23.9]} 39... Bg7 {[%clk 0:00:01.5]} 40. gxf5 {[%clk
0:00:23.6]} 40... exf5 {[%clk 0:00:02.4]} 41. Ng3 {[%clk 0:00:20.6]} 41... Ke6
{[%clk 0:00:02.1]} 42. d5+ {[%clk 0:00:12.7]} 42... Ke5 {[%clk 0:00:02.2]} 43.
d6 {[%clk 0:00:12.8]} 43... Rd7 {[%clk 0:00:02.9]} 44. Rc2 {[%clk 0:00:13.1]}
44... b6 {[%clk 0:00:03.2]} 45. Rc7 {[%clk 0:00:07.4]} 45... Kxd6 {[%clk
0:00:00.8]} 46. Rxd7+ {[%clk 0:00:07.4]} 46... Kxd7 {[%clk 0:00:01.7]} 47. Nxf5
{[%clk 0:00:08.1]} 47... Be5 {[%clk 0:00:02.4]} 48. Kg4 {[%clk 0:00:07.8]} 48...
Ke6 {[%clk 0:00:03]} 49. h5 {[%clk 0:00:08.1]} 49... Bc7 {[%clk 0:00:02.5]} 50.
Kg5 {[%clk 0:00:05.9]} 50... Bd8+ {[%clk 0:00:02.3]} 51. Kf4 {[%clk 0:00:06.3]}
51... Kd5 {[%clk 0:00:02.3]} 52. Nh6 {[%clk 0:00:05.2]} 52... Ke6 {[%clk
0:00:02.1]} 53. Kxe4 {[%clk 0:00:05.2]} 53... Bh4 {[%clk 0:00:02.2]} 54. f3
{[%clk 0:00:05.3]} 54... Be1 {[%clk 0:00:02.6]} 55. Nf5 {[%clk 0:00:05.8]} 55...
Bc3 {[%clk 0:00:03.3]} 56. Nd4+ {[%clk 0:00:04.8]} 56... Kf6 {[%clk 0:00:03.5]}
57. f4 {[%clk 0:00:05]} 57... Kg7 {[%clk 0:00:04.1]} 58. Nf5+ {[%clk 0:00:05.1]}
58... Kf6 {[%clk 0:00:04.7]} 59. Ng3 {[%clk 0:00:05.7]} 59... Ke6 {[%clk
0:00:05.3]} 60. Ne2 {[%clk 0:00:05.3]} 60... Bb2 {[%clk 0:00:05.4]} 61. Kf3
{[%clk 0:00:04.3]} 61... Kd5 {[%clk 0:00:05.4]} 62. e4+ {[%clk 0:00:04.7]} 62...
Kc5 {[%clk 0:00:05.8]} 63. Ke3 {[%clk 0:00:05.1]} 63... Bg7 {[%clk 0:00:04.8]}
64. Kd3 {[%clk 0:00:05.1]} 64... Bh6 {[%clk 0:00:04.9]} 65. Ke3 {[%clk
0:00:04.2]} 65... Kd6 {[%clk 0:00:04.6]} 66. Nd4 {[%clk 0:00:03.9]} 66... Kc5
{[%clk 0:00:04.5]} 67. Nf5 {[%clk 0:00:04.3]} 67... Bf8 {[%clk 0:00:05]} 68. Kd3
{[%clk 0:00:04.9]} 68... Kc6 {[%clk 0:00:04.8]} 69. e5 {[%clk 0:00:05.3]} 69...
Kd5 {[%clk 0:00:02.8]} 70. Ne3+ {[%clk 0:00:05.9]} 70... Ke6 {[%clk 0:00:03.5]}
71. Ke4 {[%clk 0:00:06.8]} 71... Bc5 {[%clk 0:00:02.9]} 72. f5+ {[%clk
0:00:07.4]} 72... Ke7 {[%clk 0:00:03.5]} 73. Nd5+ {[%clk 0:00:07.9]} 73... Kd7
{[%clk 0:00:04]} 74. Nf6+ {[%clk 0:00:08.3]} 74... Ke7 {[%clk 0:00:04.1]} 75.
Nxh7 {[%clk 0:00:08.8]} 75... Bf2 {[%clk 0:00:04.4]} 76. Nf6 {[%clk 0:00:09.3]}
76... Be1 {[%clk 0:00:05.3]} 77. Nd5+ {[%clk 0:00:09.2]} 77... Kf8 {[%clk
0:00:05.7]} 1-0

[Event "Early-Titled-Tuesday-Blitz-May-07-2024"]
[Site "Chess.com"]
[Date "2024.05.07"]
[Round "6"]
[White "super_emi_26"]
[Black "Thjop"]
[Result "1/2-1/2"]
[WhiteElo "2867"]
[BlackElo "2590"]
[TimeControl "180+1"]
[EndTime "9:13:26 PDT"]
[Termination "Game drawn by repetition"]

1. e4 {[%clk 0:03:00.9]} 1... e6 {[%clk 0:02:57.3]} 2. d3 {[%clk 0:02:59.5]}
2... d5 {[%clk 0:02:57.8]} 3. Qe2 {[%clk 0:02:59.9]} 3... Ne7 {[%clk 0:02:57.2]}
4. Nf3 {[%clk 0:02:59.8]} 4... c5 {[%clk 0:02:57.6]} 5. g3 {[%clk 0:03:00.4]}
5... Nbc6 {[%clk 0:02:58.1]} 6. Bg2 {[%clk 0:03:00.9]} 6... g6 {[%clk
0:02:58.7]} 7. O-O {[%clk 0:03:01.1]} 7... Bg7 {[%clk 0:02:59.3]} 8. c3 {[%clk
0:03:01.6]} 8... O-O {[%clk 0:02:59.5]} 9. Nbd2 {[%clk 0:03:01.8]} 9... b6
{[%clk 0:02:59.9]} 10. Re1 {[%clk 0:03:02.4]} 10... a5 {[%clk 0:02:59.8]} 11.
exd5 {[%clk 0:02:58.7]} 11... exd5 {[%clk 0:02:59.4]} 12. Nf1 {[%clk 0:02:54.7]}
12... Re8 {[%clk 0:02:58.9]} 13. Qc2 {[%clk 0:02:48.5]} 13... a4 {[%clk
0:02:54.7]} 14. Bg5 {[%clk 0:02:48.2]} 14... h6 {[%clk 0:02:53.2]} 15. Bd2
{[%clk 0:02:46.7]} 15... g5 {[%clk 0:02:51.6]} 16. h4 {[%clk 0:02:43.1]} 16...
g4 {[%clk 0:02:51.5]} 17. N3h2 {[%clk 0:02:41.7]} 17... h5 {[%clk 0:02:49.4]}
18. Ne3 {[%clk 0:02:40]} 18... Qd6 {[%clk 0:02:39.7]} 19. Rad1 {[%clk
0:02:38.5]} 19... Be6 {[%clk 0:02:34.5]} 20. c4 {[%clk 0:02:34.2]} 20... d4
{[%clk 0:02:22.1]} 21. Nd5 {[%clk 0:02:32.5]} 21... Nxd5 {[%clk 0:02:21.9]} 22.
cxd5 {[%clk 0:02:21.7]} 22... Bxd5 {[%clk 0:02:21.3]} 23. Bf4 {[%clk 0:02:21.4]}
23... Rxe1+ {[%clk 0:02:16.3]} 24. Rxe1 {[%clk 0:02:21.4]} 24... Qd7 {[%clk
0:02:16.5]} 25. a3 {[%clk 0:02:17.9]} 25... Bxg2 {[%clk 0:02:14.6]} 26. Kxg2
{[%clk 0:02:18.8]} 26... Qd5+ {[%clk 0:02:14]} 27. Kg1 {[%clk 0:02:15.9]} 27...
Be5 {[%clk 0:02:03.9]} 28. Qd2 {[%clk 0:02:13.7]} 28... Re8 {[%clk 0:01:53.5]}
29. f3 {[%clk 0:02:07.2]} 29... gxf3 {[%clk 0:01:44.1]} 30. Kf2 {[%clk
0:02:04.6]} 30... Re6 {[%clk 0:01:34.6]} 31. Nxf3 {[%clk 0:01:58.4]} 31... Bf6
{[%clk 0:01:27.6]} 32. Rxe6 {[%clk 0:01:42.9]} 32... Qxe6 {[%clk 0:01:28.5]} 33.
Qc2 {[%clk 0:01:43.2]} 33... Qb3 {[%clk 0:01:23.3]} 34. Qxb3 {[%clk 0:01:42.4]}
34... axb3 {[%clk 0:01:23.5]} 35. Nd2 {[%clk 0:01:43]} 35... b5 {[%clk
0:01:18.3]} 36. Bd6 {[%clk 0:01:33.4]} 36... Ne5 {[%clk 0:01:03.7]} 37. Ke2
{[%clk 0:01:19.9]} 37... c4 {[%clk 0:00:58.8]} 38. Bxe5 {[%clk 0:01:20]} 38...
Bxe5 {[%clk 0:00:58.7]} 39. dxc4 {[%clk 0:01:20.1]} 39... bxc4 {[%clk
0:00:59.3]} 40. Nxc4 {[%clk 0:01:19.7]} 40... Bxg3 {[%clk 0:00:59.5]} 41. a4
{[%clk 0:01:17.7]} 41... Bxh4 {[%clk 0:00:52.3]} 42. Nd2 {[%clk 0:01:15.9]}
42... Bf6 {[%clk 0:00:38]} 43. a5 {[%clk 0:01:11.8]} 43... Bd8 {[%clk
0:00:36.5]} 44. Nxb3 {[%clk 0:01:08.7]} 44... h4 {[%clk 0:00:30.3]} 45. a6
{[%clk 0:01:08.4]} 45... Bb6 {[%clk 0:00:29.8]} 46. Nd2 {[%clk 0:01:05.5]} 46...
Kg7 {[%clk 0:00:21]} 47. b4 {[%clk 0:01:03.3]} 47... f5 {[%clk 0:00:13.6]} 48.
b5 {[%clk 0:01:02.8]} 48... h3 {[%clk 0:00:12.7]} 49. Kf3 {[%clk 0:01:02]} 49...
d3 {[%clk 0:00:12.7]} 50. Nc4 {[%clk 0:00:58.9]} 50... f4 {[%clk 0:00:12.4]} 51.
Nd2 {[%clk 0:00:20.5]} 51... Kf6 {[%clk 0:00:12.3]} 52. Nf1 {[%clk 0:00:17.5]}
52... Kf5 {[%clk 0:00:10.2]} 53. Nd2 {[%clk 0:00:16.9]} 53... Be3 {[%clk
0:00:08.3]} 54. Nf1 {[%clk 0:00:14]} 54... Ba7 {[%clk 0:00:08.1]} 55. Nd2 {[%clk
0:00:14.3]} 55... Ke5 {[%clk 0:00:07.4]} 56. b6 {[%clk 0:00:10.5]} 56... Bxb6
{[%clk 0:00:07.2]} 57. Nc4+ {[%clk 0:00:11.2]} 57... Kf5 {[%clk 0:00:06]} 58.
Nxb6 {[%clk 0:00:09.5]} 58... d2 {[%clk 0:00:06.2]} 59. Ke2 {[%clk 0:00:07.9]}
59... h2 {[%clk 0:00:06.6]} 60. a7 {[%clk 0:00:04.2]} 60... d1=Q+ {[%clk
0:00:04]} 61. Kxd1 {[%clk 0:00:03.8]} 61... h1=Q+ {[%clk 0:00:04.9]} 62. Ke2
{[%clk 0:00:04.2]} 62... Qg2+ {[%clk 0:00:04.6]} 63. Ke1 {[%clk 0:00:04.4]}
63... Qg1+ {[%clk 0:00:03.4]} 64. Ke2 {[%clk 0:00:04.6]} 64... Qe3+ {[%clk
0:00:03.7]} 65. Kf1 {[%clk 0:00:05]} 65... Qxb6 {[%clk 0:00:03.2]} 66. a8=Q
{[%clk 0:00:05]} 66... Qb1+ {[%clk 0:00:03.2]} 67. Kf2 {[%clk 0:00:05.2]} 67...
Qb2+ {[%clk 0:00:03.6]} 68. Kf3 {[%clk 0:00:04.3]} 68... Qc3+ {[%clk 0:00:03.9]}
69. Kf2 {[%clk 0:00:04.9]} 69... Qe3+ {[%clk 0:00:04.2]} 70. Kg2 {[%clk
0:00:05.3]} 70... Qg3+ {[%clk 0:00:03.2]} 71. Kf1 {[%clk 0:00:05.8]} 71... Qd3+
{[%clk 0:00:02.7]} 72. Kf2 {[%clk 0:00:05.3]} 72... Qd4+ {[%clk 0:00:03.3]} 73.
Kg2 {[%clk 0:00:05.6]} 73... Ke5 {[%clk 0:00:02.5]} 74. Qh8+ {[%clk 0:00:05.1]}
74... Ke4 {[%clk 0:00:02.7]} 75. Qe8+ {[%clk 0:00:05.6]} 75... Kd3 {[%clk
0:00:02.9]} 76. Qb5+ {[%clk 0:00:04.2]} 76... Ke3 {[%clk 0:00:03.1]} 77. Qe8+
{[%clk 0:00:03]} 77... Kd2 {[%clk 0:00:02.8]} 78. Qb5 {[%clk 0:00:02]} 78...
Qe4+ {[%clk 0:00:02.1]} 79. Kf2 {[%clk 0:00:01.9]} 79... Qe3+ {[%clk 0:00:02.4]}
80. Kf1 {[%clk 0:00:02.6]} 80... Qd3+ {[%clk 0:00:02.4]} 81. Qxd3+ {[%clk
0:00:03.2]} 81... Kxd3 {[%clk 0:00:03.3]} 82. Kf2 {[%clk 0:00:04.1]} 82... Ke4
{[%clk 0:00:03.9]} 83. Ke2 {[%clk 0:00:04.6]} 83... f3+ {[%clk 0:00:04.5]} 84.
Kf2 {[%clk 0:00:05.1]} 84... Kf4 {[%clk 0:00:05.4]} 85. Kf1 {[%clk 0:00:05.9]}
85... Kg3 {[%clk 0:00:05.4]} 86. Kg1 {[%clk 0:00:06.3]} 86... Kg4 {[%clk
0:00:06.3]} 87. Kf2 {[%clk 0:00:07.2]} 87... Kf4 {[%clk 0:00:06.7]} 88. Kf1
{[%clk 0:00:08]} 88... Ke3 {[%clk 0:00:07.2]} 89. Ke1 {[%clk 0:00:08.4]} 89...
Ke4 {[%clk 0:00:08.1]} 90. Kf2 {[%clk 0:00:09.3]} 90... Kf4 {[%clk 0:00:08.4]}
1/2-1/2

[Event "Early-Titled-Tuesday-Blitz-May-07-2024"]
[Site "Chess.com"]
[Date "2024.05.07"]
[Round "7"]
[White "jinxy2009"]
[Black "Lily_Schirmbeck"]
[Result "1-0"]
[WhiteElo "2267"]
[BlackElo "1655"]
[TimeControl "180+1"]
[EndTime "9:17:59 PDT"]
[Termination "jinxy2009 won by checkmate"]

1. e4 {[%clk 0:03:00.9]} 1... c6 {[%clk 0:02:57.4]} 2. d4 {[%clk 0:03:00.6]}
2... d5 {[%clk 0:02:57.3]} 3. e5 {[%clk 0:03:00.9]} 3... Bf5 {[%clk 0:02:56.4]}
4. h4 {[%clk 0:03:00.7]} 4... h5 {[%clk 0:02:50.8]} 5. Bd3 {[%clk 0:03:00.4]}
5... Bxd3 {[%clk 0:02:49]} 6. Qxd3 {[%clk 0:03:01.3]} 6... e6 {[%clk 0:02:49.1]}
7. Bg5 {[%clk 0:03:00.9]} 7... Be7 {[%clk 0:02:48.3]} 8. Nf3 {[%clk 0:03:00.3]}
8... Nh6 {[%clk 0:02:45.4]} 9. Nbd2 {[%clk 0:02:54.6]} 9... Ng4 {[%clk
0:02:39.3]} 10. c4 {[%clk 0:02:49.6]} 10... dxc4 {[%clk 0:02:32]} 11. Nxc4
{[%clk 0:02:47.5]} 11... c5 {[%clk 0:02:17.7]} 12. Nd6+ {[%clk 0:02:47.3]} 12...
Kf8 {[%clk 0:02:15.1]} 13. Bxe7+ {[%clk 0:02:47.2]} 13... Qxe7 {[%clk
0:02:13.4]} 14. Ng5 {[%clk 0:02:47.4]} 14... Nh6 {[%clk 0:02:08.3]} 15. d5
{[%clk 0:02:36.3]} 15... exd5 {[%clk 0:01:59.3]} 16. Qxd5 {[%clk 0:02:34.9]}
16... Nc6 {[%clk 0:01:57.4]} 17. O-O-O {[%clk 0:02:28.7]} 17... Qxe5 {[%clk
0:01:52.1]} 18. Qd2 {[%clk 0:02:19.1]} 18... Rd8 {[%clk 0:01:40.3]} 19. Rhe1
{[%clk 0:02:18.6]} 19... Qxd6 {[%clk 0:01:39.4]} 20. Qxd6+ {[%clk 0:02:17.8]}
20... Rxd6 {[%clk 0:01:39.4]} 21. Rxd6 {[%clk 0:02:18.2]} 21... Nf5 {[%clk
0:01:35.6]} 22. Rd7 {[%clk 0:02:16.1]} 22... f6 {[%clk 0:01:32.1]} 23. Rf7+
{[%clk 0:02:15.3]} 23... Kg8 {[%clk 0:01:25.3]} 24. Re8# {[%clk 0:02:16.2]} 1-0

[Event "Early-Titled-Tuesday-Blitz-May-07-2024"]
[Site "Chess.com"]
[Date "2024.05.07"]
[Round "7"]
[White "LoaySameer"]
[Black "sokidze"]
[Result "1-0"]
[WhiteElo "2532"]
[BlackElo "2787"]
[TimeControl "180+1"]
[EndTime "9:18:36 PDT"]
[Termination "LoaySameer won by resignation"]

1. Nf3 {[%clk 0:03:00.9]} 1... d5 {[%clk 0:03:00]} 2. g3 {[%clk 0:03:01]} 2...
Nf6 {[%clk 0:03:00.2]} 3. Bg2 {[%clk 0:03:01.3]} 3... e6 {[%clk 0:03:00.9]} 4.
O-O {[%clk 0:03:01.7]} 4... Be7 {[%clk 0:03:01.5]} 5. d3 {[%clk 0:03:02.2]} 5...
O-O {[%clk 0:03:02.1]} 6. Nbd2 {[%clk 0:03:02.6]} 6... c5 {[%clk 0:03:02.7]} 7.
e4 {[%clk 0:03:03.2]} 7... Nc6 {[%clk 0:03:03.4]} 8. Re1 {[%clk 0:03:03.6]} 8...
b5 {[%clk 0:03:04.2]} 9. exd5 {[%clk 0:03:03.9]} 9... exd5 {[%clk 0:03:00.2]}
10. d4 {[%clk 0:03:04.1]} 10... c4 {[%clk 0:02:49.1]} 11. Nf1 {[%clk 0:02:56]}
11... h6 {[%clk 0:02:42.6]} 12. Ne5 {[%clk 0:02:53.4]} 12... Bb7 {[%clk
0:02:41.3]} 13. a4 {[%clk 0:02:53.6]} 13... b4 {[%clk 0:02:34.1]} 14. Ne3 {[%clk
0:02:53]} 14... Rc8 {[%clk 0:02:23.8]} 15. Nf5 {[%clk 0:02:42.5]} 15... Re8
{[%clk 0:02:22]} 16. Bxh6 {[%clk 0:02:31.6]} 16... gxh6 {[%clk 0:01:48.4]} 17.
Nxh6+ {[%clk 0:02:32.5]} 17... Kf8 {[%clk 0:01:48.1]} 18. Nhxf7 {[%clk
0:02:30.5]} 18... Qb6 {[%clk 0:01:47]} 19. Qd2 {[%clk 0:02:29.4]} 19... Nxe5
{[%clk 0:01:02.6]} 20. Nxe5 {[%clk 0:02:23.7]} 20... Rcd8 {[%clk 0:00:42.1]} 21.
Qh6+ {[%clk 0:02:19.4]} 21... Kg8 {[%clk 0:00:42]} 22. Qg6+ {[%clk 0:02:19.5]}
1-0

[Event "Early-Titled-Tuesday-Blitz-May-07-2024"]
[Site "Chess.com"]
[Date "2024.05.07"]
[Round "7"]
[White "Msb2"]
[Black "Mikhail_Bryakin"]
[Result "1/2-1/2"]
[WhiteElo "3033"]
[BlackElo "2894"]
[TimeControl "180+1"]
[EndTime "9:18:44 PDT"]
[Termination "Game drawn by repetition"]

1. d4 {[%clk 0:03:00.9]} 1... Nf6 {[%clk 0:02:53.9]} 2. c4 {[%clk 0:03:01.1]}
2... g6 {[%clk 0:02:49.2]} 3. Nc3 {[%clk 0:03:01.3]} 3... Bg7 {[%clk 0:02:48.6]}
4. e4 {[%clk 0:03:01.7]} 4... d6 {[%clk 0:02:49.1]} 5. Be2 {[%clk 0:03:02.5]}
5... O-O {[%clk 0:02:48.2]} 6. Nf3 {[%clk 0:03:03.1]} 6... Nbd7 {[%clk
0:02:45.1]} 7. O-O {[%clk 0:03:02.9]} 7... e5 {[%clk 0:02:45.5]} 8. Be3 {[%clk
0:03:03.6]} 8... Ng4 {[%clk 0:02:36.8]} 9. Bg5 {[%clk 0:03:03]} 9... Bf6 {[%clk
0:02:33.3]} 10. Bxf6 {[%clk 0:02:59.4]} 10... Ngxf6 {[%clk 0:02:33.1]} 11. Qc2
{[%clk 0:02:53.2]} 11... c6 {[%clk 0:02:32.8]} 12. Rad1 {[%clk 0:02:53.2]} 12...
Qe7 {[%clk 0:02:32.3]} 13. Rfe1 {[%clk 0:02:52.6]} 13... Re8 {[%clk 0:02:26.4]}
14. Bf1 {[%clk 0:02:41.9]} 14... b6 {[%clk 0:02:24.5]} 15. Qc1 {[%clk
0:02:35.8]} 15... Kg7 {[%clk 0:02:22.9]} 16. a3 {[%clk 0:02:20.2]} 16... Bb7
{[%clk 0:02:18.5]} 17. b4 {[%clk 0:02:20.5]} 17... a5 {[%clk 0:02:19.1]} 18. Qb2
{[%clk 0:02:20.5]} 18... axb4 {[%clk 0:02:18.8]} 19. axb4 {[%clk 0:02:21.4]}
19... Ra7 {[%clk 0:02:14]} 20. Ra1 {[%clk 0:01:59]} 20... Rea8 {[%clk
0:02:13.3]} 21. Rxa7 {[%clk 0:01:59.2]} 21... Rxa7 {[%clk 0:02:14.2]} 22. h3
{[%clk 0:01:55.4]} 22... Qe8 {[%clk 0:02:06.1]} 23. Rd1 {[%clk 0:01:11.9]} 23...
Qe7 {[%clk 0:01:53.4]} 24. Re1 {[%clk 0:01:11.3]} 24... Qe8 {[%clk 0:01:52.8]}
25. Rd1 {[%clk 0:01:11.7]} 25... Qe7 {[%clk 0:01:53]} 26. Re1 {[%clk 0:01:06.7]}
1/2-1/2

[Event "Early-Titled-Tuesday-Blitz-May-07-2024"]
[Site "Chess.com"]
[Date "2024.05.07"]
[Round "7"]
[White "djokovic74"]
[Black "watermelonattackk"]
[Result "1-0"]
[WhiteElo "2809"]
[BlackElo "2564"]
[TimeControl "180+1"]
[EndTime "9:18:44 PDT"]
[Termination "djokovic74 won by resignation"]

1. e4 {[%clk 0:03:00.9]} 1... e5 {[%clk 0:02:59.5]} 2. Nf3 {[%clk 0:03:01]} 2...
Nc6 {[%clk 0:02:59.8]} 3. Bb5 {[%clk 0:03:01.3]} 3... a6 {[%clk 0:02:59.6]} 4.
Ba4 {[%clk 0:03:01.8]} 4... Nf6 {[%clk 0:02:59.8]} 5. O-O {[%clk 0:03:02.2]}
5... Be7 {[%clk 0:03:00]} 6. d3 {[%clk 0:03:02.3]} 6... b5 {[%clk 0:03:00.4]} 7.
Bb3 {[%clk 0:03:03]} 7... d6 {[%clk 0:03:01.1]} 8. a3 {[%clk 0:03:02.6]} 8...
O-O {[%clk 0:03:01.6]} 9. Nc3 {[%clk 0:03:03.3]} 9... Nd4 {[%clk 0:03:01.6]} 10.
Nxd4 {[%clk 0:03:01.5]} 10... exd4 {[%clk 0:03:01.9]} 11. Ne2 {[%clk 0:03:02.3]}
11... c5 {[%clk 0:03:01.8]} 12. Bg5 {[%clk 0:02:56.2]} 12... Be6 {[%clk
0:03:01.6]} 13. Bxe6 {[%clk 0:02:50.2]} 13... fxe6 {[%clk 0:03:01.5]} 14. Bxf6
{[%clk 0:02:49.6]} 14... Bxf6 {[%clk 0:02:58.9]} 15. Ng3 {[%clk 0:02:50.3]}
15... Qd7 {[%clk 0:02:57.4]} 16. Qe2 {[%clk 0:02:50.5]} 16... d5 {[%clk
0:02:56.1]} 17. e5 {[%clk 0:02:46]} 17... Be7 {[%clk 0:02:56]} 18. f4 {[%clk
0:02:44.8]} 18... c4 {[%clk 0:02:54.7]} 19. Qg4 {[%clk 0:02:44.8]} 19... Kh8
{[%clk 0:02:50.3]} 20. Rae1 {[%clk 0:02:37.4]} 20... Rac8 {[%clk 0:02:48.9]} 21.
f5 {[%clk 0:02:26.5]} 21... exf5 {[%clk 0:02:43.1]} 22. Nxf5 {[%clk 0:02:26.8]}
22... g6 {[%clk 0:02:42.6]} 23. e6 {[%clk 0:02:25.7]} 23... Qc7 {[%clk
0:02:41.3]} 24. Nxe7 {[%clk 0:02:15.2]} 24... Qxe7 {[%clk 0:02:40.8]} 25. Qxd4+
{[%clk 0:02:14.9]} 25... Kg8 {[%clk 0:02:39.5]} 26. Rxf8+ {[%clk 0:02:00.9]}
26... Rxf8 {[%clk 0:02:38.2]} 27. Qxd5 {[%clk 0:02:01.4]} 27... cxd3 {[%clk
0:02:31.8]} 28. cxd3 {[%clk 0:02:00.5]} 28... Rd8 {[%clk 0:02:23.6]} 29. Qe4
{[%clk 0:01:53.4]} 29... Rf8 {[%clk 0:02:19.3]} 30. d4 {[%clk 0:01:51.5]} 30...
Qf6 {[%clk 0:02:18.3]} 31. h3 {[%clk 0:01:50.6]} 31... Re8 {[%clk 0:02:06.8]}
32. d5 {[%clk 0:01:50]} 32... Qxb2 {[%clk 0:02:06.6]} 33. d6 {[%clk 0:01:40.1]}
33... Qxa3 {[%clk 0:02:03.5]} 34. d7 {[%clk 0:01:36.3]} 1-0

[Event "Early-Titled-Tuesday-Blitz-May-07-2024"]
[Site "Chess.com"]
[Date "2024.05.07"]
[Round "7"]
[White "KononenkoD"]
[Black "Supergiuly"]
[Result "1-0"]
[WhiteElo "2594"]
[BlackElo "2342"]
[TimeControl "180+1"]
[EndTime "9:18:54 PDT"]
[Termination "KononenkoD won by resignation"]

1. d4 {[%clk 0:03:00.9]} 1... g6 {[%clk 0:02:58.8]} 2. c4 {[%clk 0:03:00.6]}
2... Bg7 {[%clk 0:02:59.3]} 3. Nc3 {[%clk 0:03:00.3]} 3... d6 {[%clk 0:02:57.9]}
4. Nf3 {[%clk 0:02:56.6]} 4... Nf6 {[%clk 0:02:57.4]} 5. g3 {[%clk 0:02:56.8]}
5... O-O {[%clk 0:02:57.2]} 6. Bg2 {[%clk 0:02:57.1]} 6... Nbd7 {[%clk
0:02:56.4]} 7. O-O {[%clk 0:02:57.5]} 7... Rb8 {[%clk 0:02:56.7]} 8. e4 {[%clk
0:02:57.4]} 8... b6 {[%clk 0:02:56.7]} 9. Re1 {[%clk 0:02:56]} 9... c5 {[%clk
0:02:55.8]} 10. e5 {[%clk 0:02:55.9]} 10... dxe5 {[%clk 0:02:53.6]} 11. dxe5
{[%clk 0:02:55.8]} 11... Ng4 {[%clk 0:02:53.5]} 12. e6 {[%clk 0:02:37.8]} 12...
Nde5 {[%clk 0:02:37.8]} 13. Qxd8 {[%clk 0:02:26.8]} 13... Rxd8 {[%clk
0:02:35.8]} 14. Nxe5 {[%clk 0:02:24.4]} 14... Nxe5 {[%clk 0:02:32.7]} 15. exf7+
{[%clk 0:02:22.5]} 15... Nxf7 {[%clk 0:02:18.5]} 16. Bd5 {[%clk 0:02:21.2]}
16... Kf8 {[%clk 0:02:07.5]} 17. Bf4 {[%clk 0:02:13.8]} 17... e5 {[%clk
0:02:01.2]} 18. Be3 {[%clk 0:02:13.1]} 18... Nd6 {[%clk 0:01:54.8]} 19. Bg5
{[%clk 0:02:04.4]} 19... Rd7 {[%clk 0:01:53.4]} 20. Rad1 {[%clk 0:01:57.5]}
20... Ba6 {[%clk 0:01:44.8]} 21. Bc6 {[%clk 0:01:52]} 21... Rbd8 {[%clk
0:01:41.8]} 22. Bxd8 {[%clk 0:01:45.2]} 22... Rxd8 {[%clk 0:01:41]} 23. Ne4
{[%clk 0:01:44.2]} 23... Ke7 {[%clk 0:01:38.2]} 24. Nxd6 {[%clk 0:01:39.2]}
24... Rxd6 {[%clk 0:01:39.1]} 25. Rxd6 {[%clk 0:01:39.3]} 25... Kxd6 {[%clk
0:01:40]} 26. Bd5 {[%clk 0:01:38.4]} 26... Bh6 {[%clk 0:01:31.9]} 27. b3 {[%clk
0:01:38.4]} 27... Bd2 {[%clk 0:01:29.3]} 28. Rd1 {[%clk 0:01:37.9]} 28... Bc3
{[%clk 0:01:27.7]} 29. Bb7+ {[%clk 0:01:36.7]} 1-0